[Event "3rd VIZAG GM-Open 2022"]
[Site "Visakapatnam"]
[Date "2022.06.13"]
[Round "2.8"]
[White "Stupak, Kirill"]
[Black "Priyankara, Chamil"]
[Result "1-0"]
[ECO "D71"]
[WhiteElo "2440"]
[BlackElo "1938"]
[Annotator "TA"]
[PlyCount "45"]
[EventDate "2022.06.13"]
[EventType "swiss"]
[EventCountry "IND"]
[SourceTitle "playchess.com"]
[Source "ChessBase"]
[SourceQuality "1"]
[TimeControl "5400+30"]

{[%evp 9,45,7,12,10,30,25,24,18,21,14,14,25,35,43,54,52,54,61,72,59,122,127,115,122,470,399,713,713,714,708,704,695,837,685,1341,1325,1241,1160]} 1. d4 {[%emt 0:04:56]} Nf6 {[%emt 0:00:32]} 2. g3 {[%emt 0:00:02]} d5 {[%emt 0:00:53]} 3. Bg2 {[%emt 0:00:11]} c6 {[%emt 0:00:26]} 4. c4 {[%emt 0:00:01]} g6 {[%emt 0:00:58]} 5. Qa4 {[%emt 0:00:18]} Bg7 {[%emt 0:01:05]} 6. cxd5 {[%emt 0:00:05] D71: Fianchetto Grünfeld: 3 g3 d5 sidelines and 5 cxd5 (without Nf3).} O-O {[%emt 0:00:12]} 7. dxc6 {[%emt 0:00:05]} Nxc6 {[%emt 0:00:02]} 8. Nf3 {[%emt 0:00:04] White has an edge.} Nd5 {[%emt 0:01:13][%cal Bf6d5,Bd5b6,Bb6c4][%mdl 32]} 9. O-O {[%emt 0:01:27]} Nb6 {[%emt 0:13:52][%csl LRa4,LRd4]} 10. Qa3 {[%emt 0:00:06]} a5 {[%emt 0:05:09]} 11. Nc3 {[%emt 0:05:46] [#]} Be6 $146 {[%emt 0:07:38]} ({Predecessor:} 11... Nb4 12. Qb3 Be6 13. Qd1 Qd7 14. Ne5 Bxe5 15. dxe5 Qc7 16. Bg5 Nc4 17. Qc1 Rac8 {1-0 (31) Kopylov,M (2393)-Schwab,T (2004) Magdeburg 2020}) 12. Rd1 {[%emt 0:13:13][%cal Od4d5] Hoping for d5!} Nb4 {[%emt 0:00:54] Prevents d5. Threatens to win with ...Nc2.} 13. Ne1 {[%emt 0:01:56] Against Nc2} Nc4 {[%emt 0:05:17] [#]} 14. Qa4 {[%emt 0:00:03]} b5 {[%emt 0:30:24]} (14... Rc8 $14) 15. Qxb5 $16 {[%emt 0:02:19]} Rb8 {[%emt 0:00:40]} 16. Qg5 {[%emt 0:02:53]} Bxd4 $2 {[%emt 0:00:39][%mdl 8192] Loses the game.} (16... h6 $16 {is tougher.} 17. Qf4 g5) 17. Qh4 {[%emt 0:05:10]} Bxc3 {[%emt 0:06:15]} (17... Bxf2+ 18. Kxf2 Qb6+ 19. Qd4 Qxd4+ 20. Rxd4 Rbc8) 18. Rxd8 $18 {[%emt 0:00:10] White is clearly winning.} Rfxd8 {[%emt 0:00:08]} 19. bxc3 {[%emt 0:00:22]} Rd1 {[%emt 0:00:03]} 20. cxb4 {[%emt 0:00:35]} Rxe1+ {[%emt 0:00:14]} 21. Bf1 {[%emt 0:00:01]} Rxb4 {[%emt 0:00:31]} 22. Qxe7 {[%emt 0:00:52][%cal Oc1h6] [#] Bh6! would kill now.} Rb8 {[%emt 0:01:22]} 23. Qf6 {[%emt 0:00:30] Weighted Error Value: White=0.04 (flawless) /Black=0.67} 1-0

[Event "3rd VIZAG GM-Open 2022"]
[Site "Visakapatnam"]
[Date "2022.06.13"]
[Round "2.9"]
[White "Pawar, Harshit"]
[Black "Mirzoev, Azer"]
[Result "1/2-1/2"]
[ECO "D02"]
[WhiteElo "1961"]
[BlackElo "2476"]
[Annotator "TA"]
[PlyCount "128"]
[EventDate "2022.06.13"]
[EventType "swiss"]
[EventCountry "IND"]
[SourceTitle "playchess.com"]
[Source "ChessBase"]
[SourceQuality "1"]
[TimeControl "5400+30"]

{[%evp 9,128,10,16,-17,-10,-10,-13,-14,-9,-13,-16,-27,-14,-27,-23,-54,-45,-52,-36,-39,-45,-38,-38,-45,-41,-47,-52,-70,-50,-50,-38,-56,-63,-71,-59,-80,-33,-54,-44,-59,-54,-99,-32,-114,-79,-80,-77,-83,-51,-104,-87,-224,-213,-142,-33,-39,-43,-89,-93,-85,-73,-70,-70,-66,-75,-87,-58,-57,-62,-66,-54,-48,-14,-15,0,0,0,0,0,0,-14,-95,0,0,0,0,0,0,0,0,0,0,0,0,0,0,0,0,0,0,0,0,0,0,0,0,0,0,0,0,-27949,-27949,-27949,-27949,-27949,-27949,0,0,0,0,0]} 1. d4 {[%emt 0:00:43]} d5 {[%emt 0:00:08]} 2. Nf3 {[%emt 0:00:05]} Nf6 {[%emt 0:00:09]} 3. Bf4 {[%emt 0:00:10]} Nh5 {[%emt 0:00:43]} 4. Bc1 {[%emt 0:03:06]} e6 {[%emt 0:00:45] [#]} 5. g3 $146 {[%emt 0:02:01]} ({Predecessor:} 5. c4 Be7 6. Nc3 O-O 7. e3 Nf6 8. Bd3 dxc4 9. Bxc4 c5 10. O-O Nc6 11. dxc5 Bxc5 12. a3 a6 13. b4 Be7 14. Bb2 b5 15. Bb3 Bb7 16. Qe2 Rc8 17. Rfd1 Qc7 18. h3 Rfd8 19. Rac1 Rxd1+ 20. Rxd1 Rd8 21. Rd3 h6 22. Bc2 Rxd3 23. Qxd3 {½-½ (54) Le,T (2514)-Andreikin,D (2724) Chess.com INT 2021}) 5... c5 {[%emt 0:01:09]} 6. c3 {[%emt 0:01:04] D02: 1 d4 d5 2 Nf3 sidelines, including 2...Nf6 3 g3 and 2...Nf6 3 Bf4.} Nc6 {[%emt 0:00:13]} 7. Bg2 {[%emt 0:00:23]} Be7 {[%emt 0:00:14]} 8. O-O {[%emt 0:02:02]} O-O {[%emt 0:00:32]} 9. Ne5 {[%emt 0:07:18]} Nf6 {[%emt 0:00:41]} 10. Nxc6 {[%emt 0:17:13]} bxc6 {[%emt 0:00:39]} 11. dxc5 {[%emt 0:00:08]} Bxc5 {[%emt 0:00:11]} 12. Qa4 {[%emt 0:00:02]} Qb6 {[%emt 0:01:26]} 13. b4 {[%emt 0:14:25]} Be7 {[%emt 0:00:52]} 14. Be3 {[%emt 0:00:03]} Qa6 {[%emt 0:05:53]} 15. Qxa6 {[%emt 0:08:29]} Bxa6 {[%emt 0:00:46]} 16. Bf3 {[%emt 0:00:02]} c5 {[%emt 0:05:14]} 17. a3 {[%emt 0:05:32]} e5 {[%emt 0:08:23][%cal Be6e5,Be5e4][%mdl 32]} 18. Re1 {[%emt 0:05:11]} e4 {[%emt 0:07:59]} 19. Bg2 {[%emt 0:00:03]} Ng4 {[%emt 0:01:29]} 20. Bf4 {[%emt 0:04:46]} g5 {[%emt 0:01:30]} 21. Bd2 {[%emt 0:00:29]} f5 {[%emt 0:03:26]} 22. a4 {[%emt 0:09:15]} cxb4 {[%emt 0:10:50]} (22... f4 $17 23. f3 cxb4 $1 24. cxb4 (24. fxg4 b3 $17) 24... Bf6) 23. cxb4 $15 {[%emt 0:00:08]} d4 {[%emt 0:02:01]} 24. Na3 {[%emt 0:11:23]} Rac8 {[%emt 0:02:06]} 25. h3 {[%emt 0:01:45]} Ne5 {[%emt 0:10:09]} (25... e3 $17 26. fxe3 dxe3) 26. Ra2 {[%emt 0:02:47]} (26. g4 $15) 26... d3 {[%emt 0:02:45]} 27. exd3 {[%emt 0:00:37]} Nxd3 {[%emt 0:00:11]} (27... Bxd3 {looks sharper.} 28. g4 a5 29. bxa5 fxg4 30. hxg4 Bc5) 28. Rb1 {[%emt 0:00:08]} Bb7 {[%emt 0:03:32]} 29. Rc2 {[%emt 0:02:27]} (29. Nb5 $1 $15) 29... f4 {[%emt 0:01:43]} 30. gxf4 {[%emt 0:02:34]} (30. Rxc8 $17 Rxc8 31. h4) 30... gxf4 $19 {[%emt 0:00:05]} 31. Bf1 {[%emt 0:00:11]} Rf6 {[%emt 0:16:48]} (31... Ne5 $17 32. Bg2 Nd3) 32. Rxc8+ $15 {[%emt 0:00:55]} Bxc8 {[%emt 0:00:03]} 33. Bxd3 {[%emt 0:00:34]} (33. Nc4 $15) 33... exd3 $17 {[%emt 0:00:02]} 34. Nc4 {[%emt 0:00:42]} Rg6+ {[%emt 0:00:31]} 35. Kh2 {[%emt 0:00:09]} f3 {[%emt 0:02:07]} 36. Rg1 {[%emt 0:00:24] Prevents Rg2+.} Rxg1 {[%emt 0:00:17]} 37. Kxg1 {[%emt 0:00:03]} Bxh3 $15 {[%emt 0:00:11][%mdl 4096] Endgame KBB-KBN} 38. Ne5 {[%emt 0:00:09][%csl LRd3,LRf3]} Bf5 $1 {[%emt 0:01:24]} 39. Nxf3 {[%emt 0:01:38]} Kf7 {[%emt 0:00:23]} 40. Ne5+ {[%emt 0:00:52]} Ke6 {[%emt 0:00:26]} 41. Nc6 {[%emt 0:00:12]} Bf6 {[%emt 0:00:49]} 42. Nxa7 {[%emt 0:00:23]} Kd5 {[%emt 0:00:07]} 43. b5 {[%emt 0:00:54]} Kc4 {[%emt 0:01:39] Hoping for ...Bc3.} 44. b6 {[%emt 0:00:32]} Be4 {[%emt 0:00:26] Prevents Nc6. Black wants to play ...Be5.} 45. Nb5 {[%emt 0:00:17] [#] aiming for Nd6+.} Kc5 {[%emt 0:02:06] Against Nd6} (45... Be7 $1 $17 {Strongly threatening ...Bb7.} 46. Nc3 Bb7) 46. Be3+ $11 {[%emt 0:00:23]} Kc6 $1 {[%emt 0:01:01]} 47. f4 {[%emt 0:00:43][%cal Ob6b7] Threatens to win with b7!} Be7 {[%emt 0:02:15] A strong pair of Bishops.} 48. Kf2 {[%emt 0:00:36]} h5 {[%emt 0:00:15]} 49. Nc3 {[%emt 0:00:27]} Bf5 {[%emt 0:00:40]} 50. a5 {[%emt 0:00:35] Black must now prevent a6.} Bc8 {[%emt 0:00:23]} 51. Ne4 {[%emt 0:00:18]} h4 {[%emt 0:00:38]} 52. Ng5 {[%emt 0:00:37]} Bb4 {[%emt 0:00:20]} 53. Nf3 {[%emt 0:00:15] Against d2} Kb5 {[%emt 0:00:45]} 54. Nxh4 {[%emt 0:00:50]} d2 {[%emt 0:00:12]} 55. Bxd2 {[%emt 0:00:16]} Bxd2 {[%emt 0:00:03]} 56. Kf3 {[%emt 0:00:22]} Bxa5 {[%emt 0:00:07] And now ...Bb7+ would win.} 57. f5 {[%emt 0:00:12]} Bc3 {[%emt 0:00:48]} ({Of course not} 57... Bxb6 $6 58. f6 $17) 58. Kf4 {[%emt 0:00:54]} Bf6 {[%emt 0:00:21]} 59. Nf3 {[%emt 0:00:16]} Kxb6 {[%emt 0:00:14]} 60. Nd2 {[%emt 0:00:15]} Kc7 $2 {[%emt 0:00:14]} (60... Kc6 61. Ne4 Bb2) 61. Ne4 {[%emt 0:00:05]} Bb2 $2 {[%emt 0:00:21]} ({Black should play} 61... Bd4 62. Ng5 Kd6 63. Nf7+ Ke7) 62. Kg5 {[%emt 0:00:28]} Kd8 $2 {[%emt 0:01:14]} ({Better is} 62... Bb7 63. Nc5 Bc6) 63. f6 $1 {[%emt 0:00:41]} Bb7 {[%emt 0:01:52]} 64. Nd6 {[%emt 0:00:21]} Bd5 {[%emt 0:00:17] Weighted Error Value: White=0.08 (flawless) /Black=0.20 (precise)} 1/2-1/2

[Event "3rd VIZAG GM-Open 2022"]
[Site "Visakapatnam"]
[Date "2022.06.13"]
[Round "2.11"]
[White "Priansh Das"]
[Black "Azaladze, Shota"]
[Result "0-1"]
[ECO "B06"]
[WhiteElo "1754"]
[BlackElo "2420"]
[Annotator "TA"]
[PlyCount "192"]
[EventDate "2022.06.13"]
[EventType "swiss"]
[EventCountry "IND"]
[SourceTitle "playchess.com"]
[Source "ChessBase"]
[SourceQuality "1"]
[TimeControl "5400+30"]

{[%evp 9,192,43,45,18,27,22,46,-6,0,0,0,-5,-9,-34,0,0,22,20,15,-7,0,0,0,-15,-14,-6,-6,-25,0,-2,-8,-5,-6,-29,-30,-22,0,-27,-22,-33,-21,-47,-50,-56,-54,-44,-20,-23,-25,-27,-4,-24,0,-29,-37,-26,-23,-75,-77,-79,-72,-69,-69,-73,-56,-56,-56,-56,-58,-56,-59,-59,-60,-60,-60,-85,-85,-88,-85,-88,-88,-88,-86,-96,-85,-100,-95,-107,-108,-103,-98,-112,-101,-104,-85,-85,-85,-82,0,-85,-85,-85,-85,-85,-80,-99,-85,-115,-115,-115,-68,-177,-158,-490,-490,-483,-195,-483,-483,-420,-358,-483,-482,-432,0,-251,-177,-189,-201,-391,-379,-533,-487,-678,-683,-857,-824,-768,-684,-1700,-679,-29967,-29969,-29983,-29959,-29973,-1508,-1438,-1457,-29975,-29976,-29984,-2479,-1767,-1767,-29974,-29976,-29975,-29976,-29978,-29979,-29978,-29979,-29979,-29977,-29977,-29978,-29978,-29979,-29979,-29979,-29979,-29977,-29977,-29979,-29979,-29979,-29979,-29980,-29980,-29981,-29981,-29982,-29984,-29983]} 1. e4 {[%emt 0:00:03]} g6 {[%emt 0:00:07]} 2. Nf3 {[%emt 0:01:07]} Bg7 {[%emt 0:00:03]} 3. d4 {[%emt 0:00:18]} c6 {[%emt 0:00:23]} 4. c3 {[%emt 0:00:27]} d6 {[%emt 0:00:12]} 5. h3 {[%emt 0:00:19]} Nd7 {[%emt 0:00:53]} 6. Bf4 {[%emt 0:00:42] B06: Modern Defence.} e5 {[%emt 0:00:14]} 7. dxe5 {[%emt 0:00:38]} dxe5 {[%emt 0:00:03]} 8. Bg3 {[%emt 0:01:10] [#]} (8. Be3 $1 $14) 8... Qe7 $146 {[%emt 0:00:18]} ({Predecessor:} 8... Qc7 9. Bd3 Ngf6 10. Nbd2 O-O 11. O-O Re8 12. Re1 b5 13. a4 Nc5 14. Bc2 Bb7 {0-1 (41) Bensch,W (1694)-Nopp,J (1775) Berlin 2010}) 9. a4 {[%emt 0:03:29]} Ngf6 {[%emt 0:03:44]} 10. Qc2 {[%emt 0:00:36]} Nh5 {[%emt 0:00:18]} 11. Bh2 {[%emt 0:01:50]} (11. Bh4 $5 {[%cal Rh4e7]} f6 12. Nbd2 $15) 11... O-O {[%emt 0:01:15]} 12. Bc4 {[%emt 0:00:49]} b6 {[%emt 0:01:26]} 13. Nbd2 {[%emt 0:00:34]} a6 {[%emt 0:00:14]} 14. b4 {[%emt 0:00:33]} Bb7 {[%emt 0:00:18]} 15. O-O {[%emt 0:00:35]} b5 {[%emt 0:00:49]} 16. Bb3 {[%emt 0:01:07]} c5 {[%emt 0:01:21]} 17. axb5 {[%emt 0:01:39]} axb5 {[%emt 0:04:23]} 18. bxc5 {[%emt 0:02:49]} Nxc5 {[%emt 0:00:45]} 19. Bd5 {[%emt 0:03:06]} Nf4 {[%emt 0:05:47]} 20. Bxf4 {[%emt 0:05:44]} exf4 {[%emt 0:00:31]} 21. Nd4 {[%emt 0:15:23]} Bxd5 {[%emt 0:09:36]} 22. exd5 {[%emt 0:00:05]} Qd7 {[%emt 0:00:38]} 23. N2f3 {[%emt 0:09:15]} Qxd5 {[%emt 0:04:17]} 24. Nxb5 {[%emt 0:01:23] Pair of Knights!} Qc4 {[%emt 0:03:04]} 25. Nbd4 {[%emt 0:03:12]} Rac8 {[%emt 1:02:21]} 26. Rfd1 {[%emt 0:05:37]} Rfe8 {[%emt 0:00:00]} 27. Re1 {[%emt 0:18:02]} Red8 {[%emt 0:00:00][%cal Rg7d4]} 28. Red1 {[%emt 0:00:49]} Bf6 {[%emt 0:00:00]} 29. Ra7 {[%emt 0:06:59]} Re8 {[%emt 0:00:00]} (29... Na6 {with more complications.} 30. Nf5 gxf5 31. Rxd8+ Rxd8 32. Qxf5 Bg7) 30. Qd2 {[%emt 0:07:39]} Re4 {[%emt 0:00:00]} (30... g5 {is interesting.} 31. Nf5 Ne4 32. Qd3 Qxd3 33. Rxd3 Ra8) 31. Qa2 {[%emt 0:00:52] Prevents Na4.} Qxa2 {[%emt 0:00:00]} 32. Rxa2 {[%emt 0:00:04]} Re7 {[%emt 0:00:00]} 33. Rda1 {[%emt 0:03:37]} (33. Ne2 $11) 33... Ne4 $17 {[%emt 0:00:00]} 34. Ra8 {[%emt 0:01:33]} Rxa8 {[%emt 0:00:00]} 35. Rxa8+ {[%emt 0:00:07]} Kg7 {[%emt 0:00:00]} 36. Ne2 {[%emt 0:00:31]} Rb7 {[%emt 0:00:00]} ({Don't play} 36... Nxc3 $6 37. Nxf4 Rb7 38. g3 $11) 37. Nxf4 {[%emt 0:03:30]} Rb1+ $1 {[%emt 0:00:00]} 38. Kh2 {[%emt 0:00:06]} Nxf2 {[%emt 0:00:00] Strongly threatening ...Rh1+.} 39. Nd5 {[%emt 0:00:29]} Rh1+ {[%emt 0:00:00]} 40. Kg3 {[%emt 0:00:03]} Ne4+ {[%emt 0:00:00]} 41. Kf4 {[%emt 0:00:03]} Nxc3 {[%emt 0:00:00]} 42. Nxc3 {[%emt 0:02:16]} Bxc3 $15 {[%emt 0:00:00][%mdl 4096] Endgame KRB-KRN} 43. Ra7 {[%emt 0:00:18]} h6 {[%emt 0:00:00]} 44. Rc7 {[%emt 0:00:21]} Bb4 {[%emt 0:00:00]} 45. Rd7 {[%emt 0:00:26] Prevents Bd6+.} Kf6 {[%emt 0:10:00]} 46. Rb7 {[%emt 0:00:36]} Bd6+ {[%emt 0:00:00]} 47. Ke3 {[%emt 0:00:05]} Ra1 {[%emt 0:00:00]} 48. Rb6 {[%emt 0:00:27]} Ke7 {[%emt 0:00:00] [#] White must now prevent ...Bc5+.} 49. Rb7+ {[%emt 0:00:04]} Ke6 {[%emt 0:00:00]} 50. Rb2 {[%emt 0:00:57]} Bc5+ {[%emt 0:00:00]} 51. Ke2 {[%emt 0:00:13]} f6 {[%emt 0:00:00]} 52. Rc2 {[%emt 0:00:08]} Kd5 {[%emt 0:00:00] Black is more active.} 53. Rd2+ {[%emt 0:00:58]} Ke6 {[%emt 0:00:00]} 54. Rc2 {[%emt 0:00:12]} Bd6 {[%emt 0:00:00]} 55. Nd4+ {[%emt 0:00:29]} Kd5 {[%emt 0:00:00]} 56. Nf3 {[%emt 0:00:19]} Bf4 {[%emt 0:00:00]} 57. Kf2 {[%emt 0:02:01]} h5 {[%emt 0:00:00]} 58. g4 {[%emt 0:01:58]} hxg4 {[%emt 0:00:00]} 59. hxg4 {[%emt 0:00:03]} g5 {[%emt 0:00:00] Inhibits Nh4.} ({Black should try} 59... Ra4 $17 60. Rb2 g5) 60. Rb2 {[%emt 0:00:29] [#]} ({White should play} 60. Ng1 $1 $15) 60... Ra4 $1 $19 {[%emt 0:00:00]} 61. Rb5+ $2 {[%emt 0:01:11]} (61. Kg2 $17) 61... Ke4 {[%emt 0:00:00]} 62. Rb2 {[%emt 0:00:12] Prevents Ra2.} Bd6 {[%emt 0:00:00]} (62... Be5 $142 63. Rc2 Kf4) 63. Rd2 $2 {[%emt 0:00:40]} (63. Kg2) 63... Be5 {[%emt 0:00:00]} 64. Rc2 {[%emt 0:00:36]} Rb4 {[%emt 0:00:00]} 65. Ra2 {[%emt 0:00:23]} Kf4 {[%emt 0:00:00]} 66. Nh2 {[%emt 0:00:26]} Ke4 {[%emt 0:00:00]} (66... Bd4+ $142 67. Ke2 Bg1) 67. Nf3 {[%emt 0:00:39]} Bc7 {[%emt 0:00:00]} 68. Ne1 {[%emt 0:00:33]} Kd5 {[%emt 0:00:00]} 69. Ng2 $2 {[%emt 0:00:30] Prevents Rf4+.} (69. Rd2+ Kc6 70. Re2) 69... Bb6+ {[%emt 0:00:00]} 70. Ke2 {[%emt 0:00:34]} (70. Kf3 {was called for.} Rb3+ 71. Ke2) 70... Rxg4 {[%emt 0:00:00]} 71. Kf3 {[%emt 0:00:02]} Rb4 {[%emt 0:00:00]} 72. Rd2+ {[%emt 0:00:14]} Ke6 {[%emt 0:00:00] ...f5 is the strong threat.} 73. Rd3 {[%emt 0:00:08]} Rb2 {[%emt 0:00:00]} 74. Ra3 {[%emt 0:00:12]} f5 {[%emt 0:00:00]} (74... g4+ $142 75. Kxg4 Rxg2+ 76. Kf3 Rf2+ 77. Kg3 Rb2) 75. Ra6 {[%emt 0:00:20]} Ke5 {[%emt 0:00:00]} 76. Ra3 {[%emt 0:00:13]} Kf6 {[%emt 0:00:00]} 77. Rc3 {[%emt 0:00:16]} Bf2 {[%emt 0:00:00]} (77... Bd4 $142 78. Rc6+ Ke5 79. Rc1 Rf2+ 80. Kg3 f4+ 81. Nxf4 gxf4+ 82. Kg4 Rg2+ 83. Kf3 Rg3+ 84. Ke2 Ke4 85. Rh1 f3+ 86. Kd2 Rg2+ 87. Kc1 f2 88. Rh4+ Kd3 89. Rh3+ Be3+ 90. Rxe3+ Kxe3 91. Kb2 f1=Q+ 92. Kc3 Qc1+ 93. Kb4 Rb2+ 94. Ka5 Qa1#) 78. Rc4 {[%emt 0:00:22]} Ba7 {[%emt 0:00:00] ( -> ...g4+)} 79. Rc6+ {[%emt 0:00:23]} Ke5 {[%emt 0:00:00]} 80. Rc3 {[%emt 0:00:19]} Kd4 {[%emt 0:00:00]} (80... g4+ $142 81. Kg3 Bf2+ 82. Kh2 f4 83. Ra3 f3 84. Ra8 Bd4 85. Re8+ Kd5 86. Rd8+ Ke4 87. Re8+ Be5+ 88. Kg1 Rxg2+ 89. Kf1 g3 90. Ke1 Rb2 91. Rg8 f2+ 92. Kf1 Rb1+ 93. Ke2 f1=Q+ 94. Kd2 Qg2#) 81. Rc8 {[%emt 0:00:16]} g4+ {[%emt 0:00:00]} 82. Kg3 {[%emt 0:00:17]} Bb8+ {[%emt 0:00:00] Black mates.} 83. Kh4 {[%emt 0:00:27]} Rxg2 {[%emt 0:00:00]} 84. Rxb8 {[%emt 0:00:05] KR-KR} f4 {[%emt 0:00:00][%cal Bf5f4,Bf4f3][%mdl 32]} 85. Rb4+ {[%emt 0:00:04]} Ke3 {[%emt 0:00:00]} 86. Rb3+ {[%emt 0:00:03]} Kf2 {[%emt 0:00:00]} 87. Rb1 {[%emt 0:00:14]} f3 {[%emt 0:00:00]} 88. Ra1 {[%emt 0:00:06]} Ke3 {[%emt 0:00:00]} 89. Ra3+ {[%emt 0:00:05]} Ke4 {[%emt 0:00:00]} 90. Ra4+ {[%emt 0:00:05]} Kf5 {[%emt 0:00:00]} 91. Ra5+ {[%emt 0:00:05]} Ke6 {[%emt 0:00:00]} 92. Ra6+ {[%emt 0:00:02]} Kd7 {[%emt 0:00:00]} 93. Ra7+ {[%emt 0:00:02]} Kc6 {[%emt 0:00:00]} 94. Ra6+ {[%emt 0:00:07]} Kb5 {[%emt 0:00:00]} 95. Rf6 {[%emt 0:00:15]} f2 {[%emt 0:00:00]} 96. Rf4 {[%emt 0:00:03]} g3 {[%emt 0:00:00] Weighted Error Value: White=0.12 (very precise) /Black=0.08 (flawless)} 0-1

[Event "3rd VIZAG GM-Open 2022"]
[Site "Visakapatnam"]
[Date "2022.06.13"]
[Round "2.12"]
[White "Hossain, Enamul"]
[Black "Sri Sai Baswanth P"]
[Result "1-0"]
[ECO "C41"]
[WhiteElo "2413"]
[BlackElo "1896"]
[Annotator "TA"]
[PlyCount "81"]
[EventDate "2022.06.13"]
[EventType "swiss"]
[EventCountry "IND"]
[SourceTitle "playchess.com"]
[Source "ChessBase"]
[SourceQuality "1"]
[TimeControl "5400+30"]

{[%evp 15,81,20,20,13,62,25,29,-8,0,0,0,0,0,0,0,0,27,26,14,17,48,43,50,0,-14,-54,-51,-124,-123,-102,-45,-48,0,0,0,0,0,0,0,-59,-6,-37,0,-6,-8,-10,0,2,0,2,586,553,640,632,683,570,552,552,29963,29964,29963,29962,4727,4727,5261,5232,29987,29983]} 1. e4 {[%emt 0:02:15]} d6 {[%emt 0:00:25]} 2. d4 {[%emt 0:00:13]} Nf6 {[%emt 0:00:12]} 3. Nc3 {[%emt 0:00:43]} e5 {[%emt 0:00:20]} 4. Nf3 {[%emt 0:01:29]} Nbd7 {[%emt 0:00:25]} 5. g3 {[%emt 0:01:29]} Be7 {[%emt 0:00:20]} 6. Bg2 {[%emt 0:00:04]} O-O {[%emt 0:00:29]} 7. O-O {[%emt 0:00:09]} c6 {[%emt 0:00:12]} 8. a4 {[%emt 0:02:00]} Re8 {[%emt 0:02:36]} 9. Re1 {[%emt 0:00:32] C41: Philidor Defence.} Bf8 {[%emt 0:00:59]} (9... Qc7 $11) 10. h3 {[%emt 0:03:07]} b6 {[%emt 0:03:51] [#]} 11. Rb1 $146 {[%emt 0:17:37] White has an edge.} ({Predecessor:} 11. b3 Bb7 12. Bb2 a6 13. Qd2 Qc7 14. Rad1 b5 15. dxe5 dxe5 16. Qc1 Nb6 17. Nh4 {0-1 (53) Duda,J (2557)-Jobava,B (2705) Warsaw 2013}) 11... Bb7 {[%emt 0:14:35]} 12. Be3 {[%emt 0:04:59]} a6 {[%emt 0:09:34]} 13. Nd2 {[%emt 0:02:01]} b5 {[%emt 0:09:14]} 14. b4 {[%emt 0:03:00]} Nb6 {[%emt 0:01:58]} 15. axb5 {[%emt 0:05:11]} cxb5 {[%emt 0:01:29]} 16. d5 {[%emt 0:00:38]} Rc8 {[%emt 0:00:56]} 17. Rb3 {[%emt 0:05:26]} Nc4 {[%emt 0:08:18]} 18. Nxc4 {[%emt 0:00:36]} Rxc4 {[%emt 0:00:02]} 19. Bf1 {[%emt 0:01:39]} (19. Qd3 $14) 19... Nxe4 $11 {[%emt 0:08:56]} 20. Bxc4 {[%emt 0:02:40]} bxc4 {[%emt 0:00:04]} 21. Nxe4 {[%emt 0:05:51]} cxb3 $17 {[%emt 0:00:47]} 22. c4 {[%emt 0:00:07]} Qc8 {[%emt 0:04:59]} (22... b2 $17 {aiming for ...f5.} 23. Qe2 f5) 23. Qxb3 $15 {[%emt 0:01:18]} f5 {[%emt 0:00:44]} (23... Qxh3 $15 24. c5 h6) 24. Nd2 $11 {[%emt 0:06:13]} f4 {[%emt 0:00:55]} 25. Bb6 {[%emt 0:01:07]} Qxh3 {[%emt 0:10:43][%cal Oe8e6] [#] White must now prevent ...Re6!} 26. gxf4 $1 {[%emt 0:00:08]} Qf5 {[%emt 0:00:21]} 27. Qf3 {[%emt 0:03:49]} ({White should play} 27. fxe5 $11 Rxe5 28. Rxe5 Qxe5 29. Qe3) 27... Re6 {[%emt 0:12:13]} (27... Qc2 $1 $15 28. Be3 exf4 29. Qxf4 Bc8) 28. Re4 {[%emt 0:01:04]} (28. Qe4 $5 {[%cal Re4f5]} Qg4+ 29. Kf1 $11) 28... Rh6 {[%emt 0:03:01] ...Bc8 is the strong threat.} 29. Be3 {[%emt 0:01:06] Threatens to win with fxe5. Active counter play!} Rh4 {[%emt 0:01:16][%cal Og7g5] And now ...g5! would win.} 30. Nf1 $1 {[%emt 0:04:25]} Qg6+ {[%emt 0:04:09]} 31. Ng3 {[%emt 0:02:02]} exf4 {[%emt 0:00:02]} 32. Bxf4 {[%emt 0:02:27]} Bc8 $2 {[%emt 0:00:04][%mdl 8192] [#] A mistake that costs the game.} (32... Qf6 $11 33. Qe3 h6) 33. Bxd6 $1 $18 {[%emt 0:08:59][%mdl 512]} Qxd6 {[%emt 0:00:35]} (33... Bxd6 34. Rxh4) 34. Rxh4 {[%emt 0:00:04]} Qxb4 {[%emt 0:00:08]} 35. Qe4 {[%emt 0:01:21]} g6 {[%emt 0:00:13]} 36. Qe8 {[%emt 0:00:45] Inhibits Bd7.} Qb7 {[%emt 0:02:02]} 37. Rf4 {[%emt 0:01:37][%csl Gf4][%cal Re8f8]} Bf5 {[%emt 0:00:50]} 38. Nxf5 {[%emt 0:00:11]} gxf5 {[%emt 0:00:07]} 39. Qe6+ {[%emt 0:00:05]} Kh8 {[%emt 0:00:15]} 40. Qxf5 {[%emt 0:01:46][%cal Rf5f8]} Bg7 {[%emt 0:00:15]} 41. Re4 {[%emt 0:00:37] Weighted Error Value: White=0.19 (very precise) /Black=0.86} 1-0